{"text_format":"1","workbook":"xlsx","n_sheets":2,"sheets":["Шаблон подгрузки PRICAT","Список регионов"],"not_rendered":{"charts":0,"images":1,"macros":1,"external_links":0,"defined_names":0,"comments":0,"pivot_tables":0},"unopened":[],"bounds":{"document_bytes":16777216,"sheet_cells":100000,"rows_first":2000,"rows_last":500,"rows_between":2000,"halvings":0,"cell_chars":16384,"cell_head_chars":4096},"cells_cut":0,"cells_raw":0,"read":"whole","date_system":"1900"}

{"sheet":"Шаблон подгрузки PRICAT","index":0,"n_rows":22,"n_cols":12,"rows_kept":22,"cut":false,"hidden":false,"merged":[[11,3,11,4],[19,3,19,4],[20,3,20,4],[21,1,21,10],[14,3,14,4],[18,3,18,4],[15,3,15,4],[16,3,16,4],[17,3,17,4],[12,3,12,4],[13,3,13,4],[0,5,0,10],[10,3,10,4],[10,9,10,10],[2,5,2,10],[3,3,3,10],[1,5,1,10],[6,5,6,10],[8,5,8,10],[5,5,5,10],[9,6,9,8],[9,9,9,10],[9,1,9,4],[7,1,7,2],[8,1,8,2],[4,5,4,10],[7,5,7,10],[0,1,0,2],[1,1,1,2],[2,1,2,2],[5,1,5,2],[6,1,6,2],[4,1,4,2]]}
[null,"Прайс-лист",null,null,"формат ввода","действие по умолчанию / комментарии"]
["Price Catalog","Номер документа",null,null,null,"по умолчанию сгенерируется уникальный номер на основании текущей даты и времени"]
[null,"Дата документа",null,null,"DD.MM.YYYY","по умолчанию подставится текущая дата"]
[null,"Поставщик"]
[1,"GLN поставщика"]
[null,"Статус",null,"Акционный",null,"для выбора другого значения нажмите на кнопку \"Тип каталога\""]
[null,"Номер договора поставки"]
[null,"Вступает в силу с даты",null,null,"DD.MM.YYYY","по умолчанию подставится текущая дата"]
[null,"Дата окончания действия",null,null,"DD.MM.YYYY","обязательно заполнять, если тип каталога \"Акционный\""]
[null,null,null,null,null,null,"* в качестве разделителя целой и дробной части используйте запятую",null,null,"** для выбора узлов из списка нажмите на кнопку \"Изменить\" в строке, которую хотите заполнить"]
[null,"№ п/п","Штрихкод","Наименование товара",null,"Ед. изм.","НОВАЯ закупочная цена без НДС, руб *","Текущая ставка НДС, %","НОВАЯ закупочная цена с НДС, руб *","Узел комм.сети (терр/РЦ) **",null,"Цена без НДС без округления"]
[null,1,null,null,null,"ШТ","0,00",10,{"$f":"ROUND(ROUND(G12,2)*(1+H12/100),2)","v":{"$error":"#VALUE!"}},null,"",{"$f":"G12","v":"0,00"}]
[null,2,null,null,null,null,"0,00",null,{"$error":"#VALUE!"},null,"","0,00"]
[null,3,null,null,null,null,"0,00",null,{"$error":"#VALUE!"},null,"","0,00"]
[null,4,null,null,null,null,"0,00",null,{"$error":"#VALUE!"},null,"","0,00"]
[null,5,null,null,null,null,"0,00",null,{"$error":"#VALUE!"},null,"","0,00"]
[null,6,null,null,null,null,"0,00",null,{"$error":"#VALUE!"},null,"","0,00"]
[null,7,null,null,null,null,"0,00",null,{"$error":"#VALUE!"},null,"","0,00"]
[null,8,null,null,null,null,"0,00",null,{"$f":"ROUND(ROUND(G19,2)*(1+H19/100),2)","v":{"$error":"#VALUE!"}},null,"",{"$f":"G19","v":"0,00"}]
[null,9,null,null,null,null,"0,00",null,{"$f":"ROUND(ROUND(G20,2)*(1+H20/100),2)","v":{"$error":"#VALUE!"}},null,"",{"$f":"G20","v":"0,00"}]
[null,10,null,null,null,null,"0,00",null,{"$f":"ROUND(ROUND(G21,2)*(1+H21/100),2)","v":{"$error":"#VALUE!"}},null,"",{"$f":"G21","v":"0,00"}]
[null,"Введите целое число от 1 до 100 и нажмите на кнопку \"Добавить строки\". "]

{"sheet":"Список регионов","index":1,"n_rows":6,"n_cols":3,"rows_kept":6,"cut":false,"hidden":false,"merged":[]}
["Закуп. организация","Наименование Закупочной","ООО \"ВИКТОРИЯ БАЛТИЯ\""]
["KLD3","Закуп Орг-я КЛД Маг"]
["KLD2","Закуп Орг-я КЛД КЭШ"]
["KLD1","Закуп Орг-я КЛД РЦ"]
["MSK2","Закуп Орг-я МСК РЦ"]
["MSK1","Закуп Орг-я МСК МАГ"]